bitfinex/quotes_SOLUSD_20241231
["timestamp","ask_amount","ask_price","bid_price","bid_amount"]
[1735680175208,8.2649683,193.27,193.25,4.0]
[1735680175414,8.2649683,193.27,193.26,4.0]
[1735680177298,8.2649683,193.29,193.28,4.0]
[1735680177694,8.2649683,193.3,193.28,4.0]
[1735680177893,8.2649683,193.3,193.29,4.0]
[1735680178719,45.35749175,193.41,193.35,4.0]
[1735680178889,45.35749175,193.41,193.27,8.2649683]
[1735680178890,45.35749175,193.41,193.38,4.0]
[1735680179097,8.2649683,193.39,193.38,4.0]
[1735680180411,20.0,193.36,193.34,4.0]
[1735680180593,32.0418523,193.35,193.31,4.0]
[1735680180925,8.2649683,193.32,193.31,4.0]
[1735680181918,8.2649683,193.32,193.29,4.0]
[1735680182120,8.2649683,193.32,193.22,1.6143]
[1735680182121,23.776884,193.35,193.31,4.0]
[1735680182343,11.17,193.38,193.31,4.0]
[1735680182344,20.0,193.32,193.31,4.0]
[1735680182844,20.0,193.31,193.3,4.0]
[1735680183018,32.89668328,193.31,193.3,4.0]
[1735680183841,56.67356728,193.31,193.3,4.0]
[1735680184016,56.67356728,193.31,193.22,136.6143]
[1735680184017,23.776884,193.3,193.28,4.0]
[1735680184219,23.776884,193.3,193.22,136.6143]
[1735680184220,12.89668328,193.29,193.27,4.0]
[1735680184419,12.89668328,193.28,193.26,4.0]
[1735680184622,12.89668328,193.27,193.26,4.0]
[1735680185720,12.89668328,193.28,193.26,4.0]
[1735680186143,12.89668328,193.28,193.27,4.0]
[1735680186328,12.89668328,193.28,193.25,4.0]
[1735680186530,12.89668328,193.26,193.25,4.0]
[1735680187722,12.89668328,193.27,193.26,4.0]
[1735680192338,12.89668328,193.27,193.25,4.0]
[1735680192644,12.89668328,193.26,193.25,4.0]
[1735680194336,12.89668328,193.26,193.24,4.0]
[1735680194521,12.89668328,193.25,193.23,4.0]
[1735680194722,12.89668328,193.24,193.23,4.0]
[1735680194946,12.89668328,193.24,193.22,5.6143]
[1735680195147,12.89668328,193.23,193.22,5.6143]
[1735680195939,12.89668328,193.23,193.22,4.0]
[1735680196523,12.89668328,193.23,193.2,4.0]
[1735680196841,12.89668328,193.21,193.19,4.0]
[1735680197147,23.776884,193.19,193.18,4.0]
[1735680197348,36.67356728,193.19,193.18,4.0]
[1735680197548,12.89668328,193.19,193.18,4.0]
[1735680197733,12.89668328,193.2,193.18,4.0]
[1735680198148,12.89668328,193.19,193.18,4.0]
[1735680199049,12.89668328,193.19,193.17,4.0]
[1735680199345,12.89668328,193.18,193.17,4.0]
[1735680201127,12.89668328,193.19,193.17,4.0]
[1735680201845,12.89668328,193.19,193.12,149.54428328]
[1735680201846,12.89668328,193.2,193.19,4.0]
[1735680202041,12.89668328,193.21,193.2,4.0]
[1735680204054,12.89668328,193.22,193.21,4.0]
[1735680204254,8.25854517,193.23,193.21,4.0]
[1735680205246,8.25854517,193.23,193.22,4.0]
[1735680206348,23.776884,193.22,193.19,4.0]
[1735680206651,20.0,193.24,193.19,4.0]
[1735680206652,8.25854517,193.2,193.19,4.0]
[1735680207631,8.25854517,193.2,193.18,4.0]
[1735680207832,8.25854517,193.19,193.17,4.0]
[1735680208031,43.776884,193.21,193.2,4.0]
[1735680209042,20.0,193.24,193.23,4.0]
[1735680209352,28.25854517,193.24,193.22,4.0]
[1735680209545,8.25854517,193.23,193.21,4.0]
[1735680209749,8.25854517,193.22,193.21,4.0]
[1735680210854,8.25854517,193.22,193.13,21.20304517]
[1735680210855,8.25854517,193.22,193.19,4.0]
[1735680211155,8.25854517,193.2,193.17,4.0]
[1735680211357,8.25854517,193.18,193.17,4.0]
[1735680212144,8.25854517,193.18,193.16,4.0]
[1735680212351,8.25854517,193.17,193.16,4.0]
[1735680214756,8.25854517,193.2,193.19,4.0]
[1735680215057,8.25854517,193.21,193.19,4.0]
[1735680215940,8.25854517,193.2,193.19,4.0]
[1735680218075,8.25854517,193.2,193.18,4.0]
[1735680218242,23.776884,193.21,193.2,4.0]
[1735680218741,23.776884,193.21,193.17,4.0]
[1735680219562,23.776884,193.21,193.18,4.0]
[1735680220167,23.776884,193.21,193.2,4.0]
[1735680221268,32.03542917,193.21,193.16,4.0]
[1735680221482,8.25854517,193.17,193.16,4.0]
[1735680223367,8.25854517,193.2,193.19,4.0]
[1735680226157,32.03542917,193.2,193.17,4.0]
[1735680226468,8.25854517,193.18,193.17,4.0]
[1735680226862,8.25854517,193.18,193.16,4.0]
[1735680227047,8.25854517,193.17,193.16,4.0]
[1735680228358,8.25854517,193.19,193.18,4.0]
[1735680229557,8.25854517,193.19,193.17,4.0]
[1735680229765,8.25854517,193.18,193.16,4.0]
[1735680229966,8.25854517,193.17,193.16,4.0]
[1735680232565,8.25854517,193.17,193.12,1.6476]
[1735680232566,8.25854517,193.17,193.13,4.0]
[1735680232769,8.25854517,193.14,193.13,4.0]
[1735680232962,8.25854517,193.14,193.12,4.0]
[1735680233176,8.25854517,193.13,193.12,4.0]
[1735680238370,23.776884,193.19,193.12,4.0]
[1735680238371,20.0,193.16,193.12,4.0]
[1735680238557,8.25854517,193.14,193.13,4.0]
[1735680239471,20.0,193.16,193.13,4.0]
[1735680239677,8.25854517,193.14,193.13,4.0]
[1735680240054,20.92762731,193.24,193.19,4.0]
[1735680240673,43.776884,193.2,193.17,4.0]
[1735680241071,43.776884,193.2,193.18,4.0]
[1735680241267,8.25854517,193.19,193.18,4.0]
[1735680243573,12.9375,193.24,193.2,4.0]
[1735680243784,8.25854517,193.21,193.2,4.0]
[1735680243986,52.03542917,193.21,193.2,4.0]
[1735680245474,20.0,193.19,193.18,4.0]
[1735680245660,8.25854517,193.19,193.18,4.0]
[1735680251878,20.0,193.22,193.21,4.0]
[1735680252077,28.25854517,193.22,193.21,4.0]
[1735680257700,8.25854517,193.22,193.21,4.0]
[1735680262323,8.25854517,193.22,193.21,9.0]
[1735680264907,20.0,193.24,193.22,4.0]
[1735680265115,20.92552731,193.27,193.23,4.0]
[1735680265288,23.776884,193.26,193.23,4.0]
[1735680267210,8.25854517,193.24,193.23,4.0]
[1735680272817,32.03542917,193.24,193.22,4.0]
[1735680273021,32.03542917,193.23,193.21,5.0]
[1735680273224,32.03542917,193.22,193.21,5.0]
[1735680274017,20.0,193.22,193.21,5.0]
[1735680274217,52.03542917,193.22,193.21,5.0]
[1735680278215,85.06960985,193.22,193.21,5.0]
[1735680279604,20.0,193.18,193.14,4.0]
[1735680279805,32.03542917,193.15,193.14,4.0]
[1735680282323,8.25854517,193.15,193.14,4.0]
[1735680285034,8.25854517,193.16,193.15,4.0]
[1735680286030,8.25854517,193.17,193.15,4.0]
[1735680287023,8.25854517,193.16,193.15,4.0]
[1735680291028,23.776884,193.19,193.15,10.0902]
[1735680291229,8.25854517,193.16,193.15,10.0902]
[1735680291625,20.0,193.2,193.16,5.6312]
[1735680291819,8.25854517,193.17,193.16,5.6312]
[1735680306045,8.25854517,193.18,193.16,5.6312]
[1735680306249,11.88618351,193.26,193.24,4.0]
[1735680306436,3.8960562,193.26,193.2,4.0]
[1735680306634,23.776884,193.22,193.17,4.0]
[1735680306840,23.776884,193.22,193.18,4.0]
[1735680307336,8.25854517,193.19,193.16,4.0]
[1735680307534,8.25854517,193.19,193.11,1.5643]
[1735680307535,23.776884,193.16,193.14,4.0]
[1735680307848,8.25854517,193.15,193.14,4.0]
[1735680309351,8.25854517,193.15,193.12,4.0]
[1735680309555,8.25854517,193.13,193.11,4.0]
[1735680309755,8.25854517,193.12,193.1,4.0]
[1735680309958,8.25854517,193.11,193.1,4.0]
[1735680310453,8.25854517,193.11,193.09,4.0]
[1735680310659,8.25854517,193.1,193.09,4.0]
[1735680311038,8.25854517,193.1,193.07,4.0]
[1735680311253,8.25854517,193.09,193.07,4.0]
[1735680311830,8.25854517,193.09,193.08,4.0]
[1735680312661,11.91301859,193.18,193.13,4.0]
[1735680312876,11.91301859,193.18,193.14,4.0]
[1735680313165,20.0,193.15,193.14,4.0]
[1735680314074,52.03542917,193.15,193.14,4.0]
[1735680316466,52.03542917,193.15,193.13,4.0]
[1735680316638,52.03542917,193.15,193.12,4.0]
[1735680316834,8.25854517,193.13,193.12,4.0]
[1735680321859,20.0,193.14,193.13,4.0]
[1735680322074,28.25854517,193.14,193.13,4.0]
[1735680323082,28.25854517,193.14,193.12,4.0]
[1735680323299,8.25854517,193.13,193.12,4.0]
[1735680325991,32.03542917,193.13,193.09,4.0]
[1735680326180,8.25854517,193.1,193.08,4.0]
[1735680326382,8.25854517,193.09,193.08,4.0]
[1735680326980,8.25854517,193.09,193.07,4.0]
[1735680327181,8.25854517,193.08,193.06,12.131]
[1735680327388,20.0,193.1,193.07,4.0]
[1735680328068,23.776884,193.09,193.06,4.0]
[1735680328294,23.776884,193.09,193.05,4.0]
[1735680328494,8.25854517,193.06,193.05,4.0]
[1735680331203,20.0,193.12,193.1,4.0]
[1735680331403,20.0,193.12,193.11,4.0]
[1735680331589,28.25854517,193.12,193.11,4.0]
[1735680332609,12.9416,193.18,193.11,4.0]
[1735680332784,8.25854517,193.12,193.11,4.0]
[1735680333898,8.25854517,193.14,193.12,4.0]
[1735680336001,23.776884,193.17,193.13,4.0]
[1735680336192,8.25854517,193.14,193.13,4.0]
[1735680337093,8.25854517,193.14,193.09,6.2946]
[1735680337094,8.25854517,193.14,193.12,4.0]
[1735680337281,8.25854517,193.13,193.12,4.0]
[1735680337485,8.25854517,193.13,193.11,4.0]
[1735680337688,8.25854517,193.12,193.11,4.0]
[1735680340706,20.0,193.16,193.15,4.0]
[1735680340887,28.25854517,193.16,193.15,4.0]
[1735680341088,52.03542917,193.16,193.15,4.0]
[1735680348804,43.776884,193.16,193.15,4.0]
[1735680349021,52.03542917,193.16,193.15,4.0]
[1735680362313,28.25854517,193.16,193.15,4.0]
[1735680362523,8.01533528,193.18,193.17,4.0]
[1735680362701,16.27388045,193.18,193.17,4.0]
[1735680363018,8.25854517,193.18,193.17,4.0]
[1735680363232,8.01533528,193.19,193.17,4.0]
[1735680363816,8.25854517,193.18,193.17,4.0]
[1735680364013,11.91172724,193.22,193.2,4.0]
[1735680364224,8.25854517,193.21,193.2,4.0]
[1735680364607,32.03542917,193.21,193.2,4.0]
[1735680365415,11.91172724,193.24,193.2,4.0]
[1735680365623,11.91172724,193.24,193.22,4.0]
[1735680365803,23.776884,193.23,193.22,4.0]
[1735680366002,23.776884,193.23,193.21,4.0]
[1735680366204,20.0,193.21,193.2,4.0]
[1735680366535,43.776884,193.2,193.18,4.0]
[1735680366704,8.25854517,193.19,193.17,4.0]
[1735680367005,8.25854517,193.18,193.17,4.0]
[1735680373025,20.0,193.16,193.15,5.612]
[1735680373223,52.03542917,193.16,193.15,4.0]
[1735680375526,20.0,193.09,193.07,6.4446]
[1735680375711,8.25854517,193.08,193.06,1.6068]
[1735680375920,8.25854517,193.07,193.06,1.6068]
[1735680376423,23.776884,193.06,193.02,6.4446]
[1735680376605,8.25854517,193.03,193.02,6.4446]
[1735680378510,8.25854517,193.04,193.02,6.4446]
[1735680379635,8.25854517,193.03,193.02,6.4446]
[1735680382312,23.776884,193.09,193.02,6.4446]
[1735680382517,8.25854517,193.03,193.02,6.4446]
[1735680383915,8.25854517,193.04,193.02,6.4446]
[1735680386042,8.25854517,193.05,193.02,6.4446]
[1735680386721,8.25854517,193.04,193.02,6.4446]
[1735680386921,23.776884,193.09,193.02,6.4446]
[1735680386922,8.25854517,193.03,193.02,6.4446]
[1735680389119,8.25854517,193.04,193.02,6.4446]
[1735680389320,8.25854517,193.05,193.02,6.4446]
[1735680389938,12.9439,193.14,193.02,141.4446]
[1735680390252,8.25854517,193.08,193.02,141.4446]
[1735680390546,16.8424635,193.14,193.02,149.70314517]
[1735680390735,8.25854517,193.09,193.02,149.70314517]
[1735680390919,8.25854517,193.09,193.03,8.25854517]
[1735680392054,8.25854517,193.09,193.02,149.70314517]
[1735680394953,8.25854517,193.08,193.02,141.4446]
[1735680401047,8.25854517,193.09,193.02,149.70314517]
[1735680402424,8.25854517,193.08,193.02,141.4446]
[1735680403533,8.25854517,193.07,193.02,141.4446]
[1735680404030,8.25854517,193.08,193.02,141.4446]
[1735680409530,8.25854517,193.08,193.02,6.4446]
[1735680410158,8.25854517,193.07,193.02,6.4446]
[1735680410358,33.03418068,193.1,193.02,6.4446]
[1735680410557,8.25854517,193.03,193.02,6.4446]
[1735680411751,8.25854517,193.04,193.02,6.4446]
[1735680412352,8.25854517,193.05,193.02,6.4446]
[1735680412534,23.776884,193.11,193.02,6.4446]
[1735680412735,8.25854517,193.05,193.02,6.4446]
[1735680413560,8.25854517,193.08,193.02,6.4446]
[1735680414459,12.9434,193.15,193.02,149.70314517]
[1735680414661,8.25854517,193.09,193.02,149.70314517]
[1735680414862,8.25854517,193.08,193.02,149.70314517]
[1735680417660,8.25854517,193.08,193.02,141.4446]
[1735680417863,8.25854517,193.08,193.02,149.70314517]
[1735680418565,8.25854517,193.09,193.02,149.70314517]
[1735680419476,8.25854517,193.08,193.02,141.4446]
[1735680420448,8.25854517,193.05,193.02,6.4446]
[1735680420642,8.25854517,193.04,193.02,6.4446]
[1735680422163,8.25854517,193.05,193.02,6.4446]
[1735680422364,8.25854517,193.06,193.02,6.4446]
[1735680425268,12.9471,193.1,193.02,6.4446]
[1735680425269,8.25854517,193.04,193.02,6.4446]
[1735680425460,8.25854517,193.05,193.02,6.4446]
[1735680427058,8.25854517,193.04,193.02,6.4446]
[1735680430970,8.25854517,193.03,193.01,1.6068]
[1735680433079,8.25854517,193.02,193.01,1.6068]
[1735680437878,8.25854517,193.02,192.97,6.4541]
[1735680438060,8.25854517,193.01,192.97,6.4541]
[1735680438875,8.25854517,193.0,192.97,6.4541]
[1735680439787,8.25854517,193.0,192.96,1.5248]
[1735680440377,8.25854517,192.97,192.92,6.0524]
[1735680440569,8.25854517,192.95,192.92,4.0524]
[1735680440774,8.25854517,192.93,192.91,1.5248]
[1735680441287,8.25854517,192.92,192.87,1.5248]
[1735680441584,8.25854517,192.89,192.87,1.5248]
[1735680441785,8.25854517,192.9,192.87,1.5248]
[1735680441966,8.25854517,192.89,192.87,1.5248]
[1735680442279,8.25854517,192.88,192.87,1.5248]
[1735680442782,23.776884,192.94,192.87,1.5248]
[1735680442984,8.25854517,192.9,192.87,1.5248]
[1735680443381,8.25854517,192.89,192.83,135.0]
[1735680443566,8.25854517,192.88,192.82,148.25854517]
[1735680443962,8.25854517,192.89,192.82,148.25854517]
[1735680444182,8.25854517,192.9,192.83,8.25854517]
[1735680444989,8.25854517,192.89,192.82,148.25854517]
[1735680446383,8.25854517,192.88,192.82,148.25854517]
[1735680446592,8.25854517,192.89,192.82,148.25854517]
[1735680447190,8.25854517,192.88,192.81,141.3878]
[1735680447373,8.25854517,192.87,192.81,6.3878]
[1735680447577,8.25854517,192.86,192.81,6.3878]
[1735680448286,8.25854517,192.85,192.81,6.3878]
[1735680448470,8.25854517,192.84,192.81,6.3878]
[1735680448671,8.25854517,192.84,192.79,1.6456]
[1735680448872,8.25854517,192.85,192.79,9.90414517]
[1735680449589,8.25854517,192.85,192.79,1.6456]
[1735680449889,8.25854517,192.85,192.79,9.90414517]
[1735680450769,8.25854517,192.86,192.79,9.90414517]
[1735680450969,8.25854517,192.85,192.79,1.6456]
[1735680451276,8.25854517,192.84,192.79,1.6456]
[1735680451473,33.03418068,192.9,192.79,1.6456]
[1735680451675,8.25854517,192.86,192.79,9.90414517]
[1735680452488,8.25854517,192.84,192.79,1.6456]
[1735680452873,8.25854517,192.85,192.79,1.6456]
[1735680453083,28.25854517,192.86,192.79,9.90414517]
[1735680453389,8.25854517,192.85,192.79,9.90414517]
[1735680453589,8.25854517,192.85,192.79,1.6456]
[1735680457477,30.9151,192.94,192.79,1.6456]
[1735680457478,12.9581,192.93,192.81,8.25854517]
[1735680457678,6.2365,192.96,192.83,8.25854517]
[1735680457900,8.25854517,192.9,192.83,8.25854517]
[1735680458408,8.25854517,192.89,192.82,143.25854517]
[1735680458877,8.25854517,192.88,192.82,135.0]
[1735680459310,12.9586,192.93,192.82,135.0]
[1735680459502,8.25854517,192.86,192.79,144.90414517]
[1735680460274,8.25854517,192.87,192.8,8.25854517]
[1735680460995,28.25854517,192.88,192.81,8.25854517]
[1735680461179,28.25854517,192.88,192.79,136.6456]
[1735680461180,20.0,192.88,192.82,8.25854517]
[1735680461712,8.25854517,192.9,192.83,8.25854517]
[1735680461892,8.25854517,192.9,192.84,8.25854517]
[1735680463887,20.0,192.9,192.84,8.25854517]
[1735680464909,28.25854517,192.9,192.83,8.25854517]
[1735680465502,8.25854517,192.89,192.83,8.25854517]
[1735680465707,28.25854517,192.9,192.83,8.25854517]
[1735680468512,8.25854517,192.89,192.82,8.25854517]
[1735680469209,8.25854517,192.86,192.79,1.6456]
[1735680469416,8.25854517,192.85,192.79,1.6456]
[1735680470813,8.25854517,192.86,192.79,9.90414517]
[1735680472420,20.0,192.86,192.8,8.25854517]
[1735680472916,20.0,192.82,192.72,136.6031]
[1735680473100,8.25854517,192.81,192.74,8.25854517]
[1735680473497,28.25854517,192.82,192.75,8.25854517]
[1735680473823,20.0,192.82,192.76,8.25854517]
[1735680474197,20.0,192.82,192.72,146.6031]
[1735680474510,20.0,192.82,192.76,8.25854517]
[1735680475834,8.25854517,192.85,192.78,8.25854517]
[1735680477517,28.25854517,192.84,192.77,8.25854517]
[1735680478527,20.0,192.84,192.78,8.25854517]
[1735680479031,20.0,192.84,192.79,8.25854517]
[1735680480115,28.25854517,192.84,192.74,147.9707]
[1735680480315,28.25854517,192.84,192.74,135.0]
[1735680480508,28.25854517,192.84,192.77,8.25854517]
[1735680481531,20.0,192.84,192.78,8.25854517]
[1735680487232,19.5192,192.88,192.79,8.25854517]
[1735680487415,8.25854517,192.91,192.84,8.25854517]
[1735680487815,23.776884,192.9,192.84,8.25854517]
[1735680488016,32.03542917,192.9,192.84,8.25854517]
[1735680488217,23.776884,192.9,192.84,8.25854517]
[1735680488430,20.0,192.88,192.85,8.25854517]
[1735680488731,8.25854517,192.93,192.86,8.25854517]
[1735680490423,8.25854517,192.92,192.86,8.25854517]
[1735680490841,8.25854517,192.92,192.85,8.25854517]
[1735680491714,8.25854517,192.91,192.85,8.25854517]
[1735680493836,8.25854517,192.92,192.85,8.25854517]
[1735680494021,8.25854517,192.93,192.87,8.25854517]
[1735680494221,8.25854517,192.93,192.86,143.25854517]
[1735680496042,28.25854517,192.94,192.87,8.25854517]
[1735680496840,8.25854517,192.93,192.86,143.25854517]
[1735680501350,8.25854517,192.92,192.86,143.25854517]
[1735680501947,8.25854517,192.92,192.86,135.0]
[1735680503153,20.0,192.94,192.86,135.0]
[1735680503329,8.25854517,192.93,192.86,143.25854517]
[1735680503834,8.25854517,192.92,192.86,135.0]
[1735680504039,8.25854517,192.91,192.86,135.0]
[1735680505949,8.25854517,192.92,192.85,9.78464517]
[1735680506248,8.25854517,192.9,192.85,1.5261]
[1735680506641,23.776884,192.94,192.85,9.78464517]
[1735680506940,8.25854517,192.92,192.85,9.78464517]
[1735680507459,12.957,192.95,192.85,9.78464517]
[1735680507747,33.03418068,193.0,192.88,143.25854517]
[1735680507954,8.25854517,192.96,192.89,8.25854517]
[1735680508145,8.25854517,192.96,192.89,143.25854517]
[1735680508342,8.25854517,192.95,192.89,135.0]
[1735680508856,8.25854517,192.94,192.89,135.0]
[1735680509050,8.25854517,192.95,192.89,135.0]
[1735680511839,8.25854517,192.94,192.89,135.0]
[1735680512240,8.25854517,192.92,192.85,136.5261]
[1735680512545,8.25854517,192.9,192.85,136.5261]
[1735680515757,12.9569,192.95,192.85,144.78464517]
[1735680515758,8.25854517,192.92,192.85,144.78464517]
[1735680516964,8.25854517,192.93,192.86,143.25854517]
[1735680519877,8.25854517,192.93,192.86,135.0]
[1735680520572,8.25854517,192.93,192.86,143.25854517]
[1735680521474,12.955,192.98,192.87,8.25854517]
[1735680521475,8.25854517,192.94,192.87,8.25854517]
[1735680521777,8.25854517,192.95,192.87,143.25854517]
[1735680522273,8.25854517,192.94,192.87,143.25854517]
[1735680522571,8.25854517,192.95,192.87,143.25854517]
[1735680523583,8.25854517,192.96,192.88,8.25854517]
[1735680523760,8.25854517,192.96,192.89,8.0071]
[1735680524157,8.25854517,192.95,192.89,8.0071]
[1735680526262,8.25854517,192.96,192.89,16.26564517]
[1735680526771,8.25854517,192.96,192.89,151.26564517]
[1735680527358,8.25854517,192.97,192.9,8.25854517]
[1735680527875,8.25854517,192.96,192.9,8.25854517]
[1735680528167,20.0,192.98,192.91,136.5331]
[1735680528389,8.25854517,192.98,192.91,144.79164517]
[1735680528592,8.25854517,192.98,192.92,8.25854517]
[1735680530059,8.25854517,192.98,192.91,144.79164517]
[1735680530265,8.25854517,192.97,192.91,136.5331]
[1735680530569,8.25854517,192.95,192.91,136.5331]
[1735680530776,8.25854517,192.94,192.91,1.5331]
[1735680531877,8.25854517,192.95,192.91,1.5331]
[1735680533460,20.0,192.97,192.91,1.5331]
[1735680533659,8.25854517,192.95,192.91,1.5331]
[1735680537081,8.25854517,192.93,192.91,1.5331]
[1735680537582,8.25854517,192.94,192.91,1.5331]
[1735680538279,8.25854517,192.92,192.91,1.5331]
[1735680538462,8.25854517,192.92,192.86,1.5331]
[1735680538659,8.25854517,192.9,192.86,136.5331]
[1735680539386,8.25854517,192.91,192.86,136.5331]
[1735680544789,8.25854517,192.91,192.86,1.5331]
[1735680545694,8.25854517,192.92,192.86,1.5331]
[1735680546190,8.25854517,192.94,192.87,135.0]
[1735680548987,8.25854517,192.94,192.87,143.25854517]
[1735680549299,8.25854517,192.96,192.89,8.25854517]
[1735680549607,8.25854517,192.96,192.88,8.25854517]
[1735680549781,8.25854517,192.95,192.88,8.25854517]
[1735680550180,8.25854517,192.95,192.88,143.25854517]
[1735680550498,3.90119982,192.99,192.86,1.5331]
[1735680550499,8.25854517,192.93,192.86,144.79164517]
[1735680550705,8.25854517,192.94,192.87,143.25854517]
[1735680552316,8.25854517,192.93,192.87,135.0]
[1735680554193,8.25854517,192.94,192.87,143.25854517]
[1735680555618,23.776884,192.97,192.86,1.5331]
[1735680555619,8.25854517,192.9,192.86,1.5331]
[1735680557714,8.25854517,192.89,192.86,1.5331]
[1735680558881,8.25854517,192.9,192.86,1.5331]
[1735680559695,8.25854517,192.91,192.86,1.5331]
[1735680560705,12.956,192.96,192.86,136.5331]
[1735680560706,8.25854517,192.92,192.86,136.5331]
[1735680563590,3.90100357,192.99,192.86,136.5331]
[1735680563790,3.90100357,192.99,192.88,8.25854517]
[1735680564096,8.25854517,192.96,192.89,8.25854517]
[1735680565506,8.25854517,192.97,192.9,143.25854517]
[1735680568711,8.25854517,192.97,192.9,149.57354517]
[1735680569014,8.25854517,192.97,192.91,136.5278]
[1735680569210,12.9521,193.02,192.91,144.78634517]
[1735680569415,8.25854517,192.99,192.93,8.25854517]
[1735680570112,23.776884,193.04,192.93,8.25854517]
[1735680570315,8.25854517,192.99,192.93,8.25854517]
[1735680571221,8.25854517,192.99,192.92,8.25854517]
[1735680574829,8.25854517,192.99,192.92,143.25854517]
[1735680575804,8.25854517,192.98,192.92,135.0]
[1735680577316,8.25854517,192.99,192.92,143.25854517]
[1735680584920,8.25854517,192.96,192.91,136.5278]
[1735680586015,8.25854517,192.97,192.91,136.5278]
[1735680588212,8.25854517,192.95,192.91,1.5278]
[1735680588526,8.25854517,192.96,192.91,1.5278]
[1735680590224,8.25854517,192.97,192.91,1.5278]
[1735680590522,8.25854517,192.98,192.91,144.78634517]
[1735680591228,8.25854517,192.99,192.92,143.25854517]
[1735680591614,8.25854517,193.0,192.93,143.25854517]
[1735680591809,8.25854517,193.02,192.96,1.5554]
[1735680593115,8.25854517,193.01,192.96,1.5554]
[1735680594104,8.25854517,193.0,192.96,1.5554]
[1735680594300,23.776884,193.05,192.96,1.5554]
[1735680594506,8.25854517,193.03,192.97,141.3433]
[1735680595021,8.25854517,193.04,192.97,149.60184517]
[1735680596616,23.776884,193.09,192.97,149.60184517]
[1735680596822,8.25854517,193.04,192.97,149.60184517]
[1735680597524,20.0,193.1,193.01,1.5554]
[1735680597828,8.25854517,193.08,193.01,144.81394517]
[1735680598020,8.25854517,193.06,193.01,136.5554]
[1735680598428,8.25854517,193.04,193.01,1.5554]
[1735680598816,8.25854517,193.03,193.01,1.5554]
[1735680600127,36.724184,193.09,192.97,6.3433]
[1735680600128,8.25854517,193.02,192.97,6.3433]
[1735680600443,8.25854517,193.01,192.97,6.3433]
[1735680602007,8.25854517,193.02,192.97,6.3433]
[1735680602715,8.25854517,193.03,192.97,141.3433]
[1735680603704,8.25854517,193.02,192.97,141.3433]
[1735680604031,8.25854517,193.03,192.97,141.3433]
[1735680610135,8.25854517,193.04,192.97,141.3433]
[1735680611246,8.25854517,193.0,192.97,6.3433]
[1735680611445,8.25854517,192.99,192.97,6.3433]
[1735680612127,8.25854517,193.0,192.97,6.3433]
[1735680612937,8.25854517,192.99,192.97,6.3433]
[1735680613436,8.25854517,192.98,192.96,1.5554]
[1735680613638,8.25854517,192.97,192.92,6.1266]
[1735680613934,8.25854517,192.94,192.92,6.1266]
[1735680614918,8.25854517,192.95,192.92,6.1266]
[1735680615119,8.25854517,192.96,192.92,6.1266]
[1735680618242,43.776884,193.01,192.92,141.1266]
[1735680618439,8.25854517,192.98,192.92,141.1266]
[1735680619048,5.56508522,193.05,192.93,143.25854517]
[1735680619254,8.25854517,193.01,192.94,143.25854517]
[1735680620127,8.25854517,193.0,192.94,135.0]
[1735680621319,8.25854517,193.01,192.94,143.25854517]
[1735680625755,8.25854517,193.0,192.94,143.25854517]
[1735680626250,8.25854517,193.0,192.94,135.0]
[1735680626832,18.51188522,193.1,192.97,8.25854517]
[1735680627046,8.25854517,193.05,192.98,143.25854517]
[1735680627242,8.25854517,193.05,192.99,141.122]
[1735680627448,8.25854517,193.07,193.0,8.25854517]
[1735680628359,8.25854517,193.06,193.0,135.0]
[1735680629352,8.25854517,193.06,193.0,143.25854517]
[1735680629559,8.25854517,193.08,193.02,8.25854517]
[1735680629854,8.25854517,193.08,193.03,1.6104]
[1735680630954,8.25854517,193.07,193.03,1.6104]
[1735680632058,8.25854517,193.06,193.03,1.6104]
[1735680634959,8.25854517,193.06,193.03,136.6104]
[1735680635342,16.8412606,193.16,193.03,1.6104]
[1735680635540,8.25854517,193.1,193.03,144.86894517]
[1735680635936,8.25854517,193.1,193.04,8.25854517]